Workbook

Sheet PAUTA
A4: INSTRUMENTO DE AUDITORIA
A5: GESTION DE SEGURIDAD
A7: FAENA | C7: Planta xxxxx
A8: FECHA AUDITORIA | C8: 2022-04-19
A9: EMPRESA | C9: ENAMI
A10: AREA | C10: Operaciones
A11: SUPERINTENDENTE | C11: Juan Perez | DQ11: Administrador de Contrato
A12: JEFE DE AREA | C12: Juan Perez | DQ12: Jefe Dpto. de Prevención de Riesgos
A13: SUPERVISOR | C13: Juan Perez | DM13: C | DN13: Patricia Morales Berrios | DQ13: Asesor en Prevención de Riesgos
DM14: MC | DN14: Natalia Sotomayor Rojas
D15: EVALUACION | DM15: NC | DN15: Danny Sepúlveda Nievas
D16: Pje. Obt. | E16: Pje. Mód. | F16: % Módulo | DM16: NA | DN16: Patricia Morales B. - Natalia Sotomayor R.
A17: 1° | B17: ESTRUCTURA | C17: Planes y Programas | D17: =F33+F39 -> 0.2 | E17: =D33+D39 -> 0.2 | F17: =(D17*100)/E17 -> 100 | DM17: 0.5 | DN17: Patricia Morales B.- Danny Sepúlveda N.
A18: 2° | B18: RIESGOS CRITICOS | C18: Estándares de fatalidades y accidentes graves | D18: =F65+F72 -> 0.4 | E18: =D65+D72 -> 0.4 | F18: =(D18*100)/E18 -> 100 | DN18: Natalia Sotomayor R. - Danny Sepúlveda N.
A19: 3° | B19: PROTOCOLOS | C19: Gestión de riesgos en terreno | D19: =F81+F88+F94+F104 -> 0.3 | E19: =D81+D88+D94+D104 -> 0.3 | F19: =(D19*100)/E19 -> 100
A20: 4° | B20: BAJA CONSECUENCIA | C20: Control de frecuencia, baja consecuencia | D20: =F112 -> 0.1 | E20: =D112 -> 0.1 | F20: =(D20*100)/E20 -> 100
C21: RESULTADO TOTAL | D21: =SUM(D17:D20) -> 1 | E21: =SUM(E17:E20) -> 1 | F21: =(D21*100)/E21 -> 100
A24: 1.- ESTRUCTURA
A25: 1.1.- Planificación
A26: ITEM | C26: ACCIONES | D26: FACTOR | E26: EVALUACION | F26: PUNTAJE | G26: OBSERVACIONES
A28: 1.1.1 | B28: Plan PDR Local | C28: Análisis local, difusión y puesta en marcha | D28: 0.03 | E28: C | F28: =IF(OR(E28="C",E28="NA"),D28,(IF(E28="MC",(D28*$DM$17),0))) -> 0.03 | G28: PRUEBA
A29: 1.1.2 | B29: Personalizados | C29: Carga de actividades en Plataforma | D29: 0.05 | E29: C | F29: =IF(OR(E29="C",E29="NA"),D29,(IF(E29="MC",(D29*$DM$17),0))) -> 0.05
A30: 1.1.3 | B30: Control de gestión local | C30: Método de control y retroalimentación | D30: 0.03 | E30: C | F30: =IF(OR(E30="C",E30="NA"),D30,(IF(E30="MC",(D30*$DM$17),0))) -> 0.03
A31: 1.1.4 | B31: Informes corporativos | C31: Realización y control de gestión | D31: 0.02 | E31: C | F31: =IF(OR(E31="C",E31="NA"),D31,(IF(E31="MC",(D31*$DM$17),0))) -> 0.02
A32: 1.1.5 | B32: CPHS | C32: Constitución y actas | D32: 0.02 | E32: C | F32: =IF(OR(E32="C",E32="NA"),D32,(IF(E32="MC",(D32*$DM$17),0))) -> 0.02
A33: TOTAL | D33: 0.15 | F33: =SUM(F28:F32) -> 0.15
A35: 1.2.- Empresas Contratistas
A36: ITEM | C36: ACCIONES | D36: FACTOR | E36: EVALUACION | F36: PUNTAJE | G36: OBSERVACIONES
A38: 1.2.1 | B38: Programa Corporativo | C38: Recepción y control documental | D38: 0.05 | E38: C | F38: =IF(OR(E38="C",E38="NA"),D38,(IF(E38="MC",(D38*$DM$17),0))) -> 0.05
A39: TOTAL | D39: 0.05 | F39: =SUM(F38) -> 0.05
A41: 2.- RIESGOS CRITICOS
A42: 2.1.- Estándares de Prevención de Fatalidades y Accidentes Graves
A43: ITEM | C43: ACCIONES | D43: FACTOR | E43: EVALUACION | F43: PUNTAJE | G43: OBSERVACIONES
A45: 2.1.1 | B45: Pérdida de Control VYE | C45: Conductores autorizados (Menores y equipos) | D45: 0.01 | E45: C | F45: =IF(OR(E45="C",E45="NA"),D45,(IF(E45="MC",(D45*$DM$17),0))) -> 0.01
A46: 2.1.2 | C46: Registro y control de vehículos y equipos | D46: 0.01 | E46: C | F46: 0.01
A47: 2.1.3 | B47: Pérdida de equilibrio | C47: Estado líneas de vida, orejas, plataformas, P.ancl | D47: 0.02 | E47: C | F47: 0.02
A48: 2.1.4 | C48: Protocolos de andamios y/o equipos móviles | D48: 0.02 | E48: C | F48: 0.02
A49: 2.1.5 | B49: Contacto con SUSPEL | C49: Rotulación, HDS, Señales, EPP esp. y ALMC. | D49: 0.02 | E49: C | F49: 0.02
A50: 2.1.6 | C50: Duchas de emergencias, productos de mitigación | D50: 0.02 | E50: C | F50: 0.02
A51: 2.1.7 | B51: Contacto Partes móviles | C51: Protección de partes móviles, paradas, otros. | D51: 0.02 | E51: C | F51: 0.02
A52: 2.1.8 | C52: Implementación Estándar de bloqueo de equipos | D52: 0.02 | E52: C | F52: 0.02
A53: 2.1.9 | B53: Contacto con energía eléctrica | C53: Estado de salas eléctricas (Implementación gral) | D53: 0.01 | E53: C | F53: 0.01
A54: 2.1.10 | C54: Gavetas, tableros y extensiones en terreno | D54: 0.01 | E54: C | F54: =IF(OR(E54="C",E54="NA"),D54,(IF(E54="MC",(D54*$DM$17),0))) -> 0.01
A55: 2.1.11 | B55: Liberación descontrolada E. | C55: Implementación Bloqueo de Válvulas y líneas | D55: 0.01 | E55: C | F55: 0.01
A56: 2.1.12 | C56: Dispositivos de contención de energía | D56: 0.01 | E56: C | F56: =IF(OR(E56="C",E56="NA"),D56,(IF(E56="MC",(D56*$DM$17),0))) -> 0.01
A57: 2.1.13 | B57: Exp. Atmosfera peligrosa | C57: Identificación de espacios confinados | D57: 0.01 | E57: C | F57: 0.01
A58: 2.1.14 | C58: Estado de equipo medidor de gases. | D58: 0.01 | E58: C | F58: 0.01
A59: 2.1.15 | B59: Contacto con M/L caliente F. | C59: EPP específicos | D59: 0.02 | E59: C | F59: =IF(OR(E59="C",E59="NA"),D59,(IF(E59="MC",(D59*$DM$17),0))) -> 0.02
A60: 2.1.16 | C60: Puntos de trabajo en caliente | D60: 0.02 | E60: C | F60: =IF(OR(E60="C",E60="NA"),D60,(IF(E60="MC",(D60*$DM$17),0))) -> 0.02
A61: 2.1.17 | B61: Pérdida de control carga susp. | C61: Protocolo o Plan de izaje / Cierre de área | D61: 0.02 | E61: C | F61: 0.02
A62: 2.1.18 | C62: Estados de elementos de izaje (Código de color) | D62: 0.02 | E62: C | F62: 0.02
A63: 2.1.19 | B63: Colapso de terreno o Falla Est | C63: Métodos de control de terreno u otros. | D63: 0.01 | E63: C | F63: 0.01
A64: 2.1.20 | C64: Revisión de viseras, taludes, otros. | D64: 0.01 | E64: C | F64: 0.01
A65: TOTAL | D65: 0.3 | F65: =SUM(F45:F64) -> 0.3
A67: 2.2.- Mejoramiento Continuo
A68: ITEM | C68: ACCIONES | D68: FACTOR | E68: EVALUACION | F68: PUNTAJE | G68: OBSERVACIONES
A70: 2.2.1 | B70: Proyectos RC | C70: Revisar proyecto de mejoramiento RC | D70: 0.05 | E70: C | F70: =IF(OR(E70="C",E70="NA"),D70,(IF(E70="MC",(D70*$DM$17),0))) -> 0.05
A71: 2.2.2 | B71: Reportabilidad Preventiva | C71: Foco, Estado y Compromiso | D71: 0.05 | E71: C | F71: =IF(OR(E71="C",E71="NA"),D71,(IF(E71="MC",(D71*50%),0))) -> 0.05
A72: TOTAL | D72: 0.1 | F72: =SUM(F70:F71) -> 0.1
A74: 3.- PROTOCOLOS
A75: 3.1.- Control de Terreno
A76: ITEM | C76: ACCIONES | D76: FACTOR | E76: EVALUACION | F76: PUNTAJE | G76: OBSERVACIONES
A78: 3.1.1 | B78: Reunión de coordinación | C78: Registros | D78: 0.02 | E78: C | F78: =IF(OR(E78="C",E78="NA"),D78,(IF(E78="MC",(D78*$DM$17),0))) -> 0.02
A79: 3.1.2 | B79: PTG ARO | C79: Revisión de implementación | D79: 0.02 | E79: C | F79: =IF(OR(E79="C",E79="NA"),D79,(IF(E79="MC",(D79*$DM$17),0))) -> 0.02
A80: 3.1.3 | B80: Disciplina de instructivos | C80: Función, Capacitación y evaluación de eficacia | D80: 0.02 | E80: C | F80: =IF(OR(E80="C",E80="NA"),D80,(IF(E80="MC",(D80*$DM$17),0))) -> 0.02
A81: TOTAL | D81: 0.06 | F81: =SUM(F78:F80) -> 0.06
A83: 3.2.-Incidentes - Aprendizaje
A84: ITEM | C84: ACCIONES | D84: FACTOR | E84: EVALUACION | F84: PUNTAJE | G84: OBSERVACIONES
A86: 3.2.1 | B86: Planes de Acción | C86: Cierre de investigación y gestión de riesgos | D86: 0.02 | E86: C | F86: =IF(OR(E86="C",E86="NA"),D86,(IF(E86="MC",(D86*$DM$17),0))) -> 0.02
A87: 3.2.2 | B87: Alertas y aplicabilidad | C87: Registros de análisis, gestión y difusiones | D87: 0.02 | E87: C | F87: =IF(OR(E87="C",E87="NA"),D87,(IF(E87="MC",(D87*$DM$17),0))) -> 0.02
A88: TOTAL | D88: 0.04 | F88: =SUM(F86:F87) -> 0.04
A90: 3.3.- Alcohol y drogas
A91: ITEM | C91: ACCIONES | D91: FACTOR | E91: EVALUACION | F91: PUNTAJE | G91: OBSERVACIONES
A93: 3.3.1 | B93: Procedimiento | C93: Respaldos de difusiones y control de testeos | D93: 0.1 | E93: C | F93: =IF(OR(E93="C",E93="NA"),D93,(IF(E93="MC",(D93*$DM$17),0))) -> 0.1
A94: TOTAL | D94: 0.1 | F94: =SUM(F93) -> 0.1
A96: 3.4.- Información documentada
A97: ITEM | C97: ACCIONES | D97: FACTOR | E97: EVALUACION | F97: PUNTAJE | G97: OBSERVACIONES
A99: 3.2.1 | B99: ODI | C99: Proceso de inducción y control documental | D99: 0.02 | E99: C | F99: =IF(OR(E99="C",E99="NA"),D99,(IF(E99="MC",(D99*$DM$17),0))) -> 0.02
A100: 3.2.2 | B100: Control documentos locales | C100: Procedimientos, Instructivos, etc. | D100: 0.02 | E100: C | F100: =IF(OR(E100="C",E100="NA"),D100,(IF(E100="MC",(D100*$DM$17),0))) -> 0.02
A101: 3.2.3 | B101: Capacitación y evaluación | C101: Registro de entrega PTS, y Observación | D101: 0.02 | E101: C | F101: =IF(OR(E101="C",E101="NA"),D101,(IF(E101="MC",(D101*$DM$17),0))) -> 0.02
A102: 3.2.3 | B102: Acreditación SIGIS | C102: Estado de acreditación Empresa y Trabajadores | D102: 0.02 | E102: C | F102: =IF(OR(E102="C",E102="NA"),D102,(IF(E102="MC",(D102*$DM$17),0))) -> 0.02
A103: 3.2.4 | B103: RESSO y Listado de EECC | C103: Registro y entrega de listado a SERNAGEOMIN | D103: 0.02 | E103: C | F103: =IF(OR(E103="C",E103="NA"),D103,(IF(E103="MC",(D103*$DM$17),0))) -> 0.02
A104: TOTAL | D104: 0.1 | F104: =SUM(F99:F103) -> 0.1
A106: 4.- BAJA CONSECUENCIA
A107: 4.1.- Focalización alta frecuencia y baja consecuencia
A108: ITEM | C108: ACCIONES | D108: FACTOR | E108: EVALUACION | F108: PUNTAJE | G108: OBSERVACIONES
A110: 4.1.1 | B110: Análisis local | C110: PPT y difusión equipo | D110: 0.05 | E110: C | F110: =IF(OR(E110="C",E110="NA"),D110,(IF(E110="MC",(D110*$DM$17),0))) -> 0.05
A111: 4.1.2 | B111: Planificación focalizada | C111: Acción sobre empresas y servicios | D111: 0.05 | E111: C | F111: =IF(OR(E111="C",E111="NA"),D111,(IF(E111="MC",(D111*$DM$17),0))) -> 0.05
A112: TOTAL | D112: 0.1 | F112: =SUM(F110:F111) -> 0.1

Sheet INFORME1
A2: INFORME DE AUDITORIA
A3: "Expectativas"
A5: EMPRESA | C5: =PAUTA!C7 -> Planta xxxxx
A6: GERENCIA | C6: =PAUTA!C9 -> ENAMI | F6: FECHA
A7: AREA / DIVISION | C7: =PAUTA!C10 -> Operaciones
A8: NOMBRE GERENTE | C8: =PAUTA!C11 -> Juan Perez | F8: FIRMA
A9: NOMBRE ADMINISTRADOR | C9: =PAUTA!C12 -> Juan Perez | F9: FIRMA
A10: NOMBRE ASESOR PDR | C10: =PAUTA!C13 -> Juan Perez | F10: FIRMA
F11: FIRMA
A20: DESCRIPCION DE NO CONFORMIDADES - HALLAZGOS.
A21: N° | B21: HALLAZGO | C21: ACCION CORRECTIVA | D21: ACCION PREVENTIVA | E21: RESPONSABLE | H21: FECHA
A22: 1
A23: 2
A24: 3
A25: 4
A26: 5
A27: 6
A28: 7
A29: 8
A30: 9
A31: 10
A32: 11
A33: 12
A34: 13
A35: 14
A36: 15
A37: 16
A38: 17
A40: VALIDACION DE INFORMACIÓN
C41: NOMBRE | D41: CARGO | F41: FIRMA
A42: REALIZADO POR
A43: APROBADO POR

Sheet GRAFICO
G37: =PAUTA!D15 -> EVALUACION
G38: =PAUTA!D16 -> Pje. Obt. | H38: =PAUTA!E16 -> Pje. Mód. | I38: =PAUTA!F16 -> % Módulo
D39: =PAUTA!A17 -> 1° | E39: =PAUTA!B17 -> ESTRUCTURA | G39: =PAUTA!D17 -> 0.2 | H39: =PAUTA!E17 -> 0.2 | I39: =PAUTA!F17 -> 100
D40: =PAUTA!A18 -> 2° | E40: =PAUTA!B18 -> RIESGOS CRITICOS | G40: =PAUTA!D18 -> 0.4 | H40: =PAUTA!E18 -> 0.4 | I40: =PAUTA!F18 -> 100
D41: =PAUTA!A19 -> 3° | E41: =PAUTA!B19 -> PROTOCOLOS | G41: =PAUTA!D19 -> 0.3 | H41: =PAUTA!E19 -> 0.3 | I41: =PAUTA!F19 -> 100
D42: =PAUTA!A20 -> 4° | E42: =PAUTA!B20 -> BAJA CONSECUENCIA | G42: =PAUTA!D20 -> 0.1 | H42: =PAUTA!E20 -> 0.1 | I42: =PAUTA!F20 -> 100
E43: TOTAL | G43: =PAUTA!D21 -> 1 | H43: =PAUTA!E21 -> 1 | I43: =PAUTA!F21 -> 100

Sheet Hoja1
